[Event "Titled Tuesday Blitz August 08 Early 2023"]
[White "Goh, Wei Ming Kevin"]
[Black "Papayan, Oleg"]
[WhiteFideId "5800706"]
[BlackFideId "4193911"]
[WhiteElo "2639"]
[BlackElo "2517"]
[Result "0-1"]
[Round "10"]
[TimeControl "180+1"]
[Date "2023.08.08"]
[WhiteClock "0:00:00"]
[BlackClock "0:00:10"]
[Board "69"]

1. e4 {[%clk 0:03:00]}  c5 {[%clk 0:02:59]} 2. Nf3 {[%clk 0:02:59]}  e6 {[%clk 0:02:59]} 3. d4 {[%clk 0:02:59]}  cxd4 {[%clk 0:03:00]} 4. Bg5 {[%clk 0:03:00]}  Qb6 {[%clk 0:03:00]} 5. Qxd4 {[%clk 0:02:59]}  Nc6 {[%clk 0:03:00]} 6. Qxb6 {[%clk 0:02:57]}  axb6 {[%clk 0:03:00]} 7. Nbd2 {[%clk 0:02:50]}  Nf6 {[%clk 0:02:50]} 8. Bd3 {[%clk 0:02:47]}  Bc5 {[%clk 0:02:42]} 9. c3 {[%clk 0:02:47]}  Ng4 {[%clk 0:02:39]} 10. Bh4 {[%clk 0:02:45]}  Nce5 {[%clk 0:02:36]} 11. Nxe5 {[%clk 0:02:45]}  Nxe5 {[%clk 0:02:36]} 12. Be2 {[%clk 0:02:43]}  O-O {[%clk 0:02:27]} 13. Nb3 {[%clk 0:02:43]}  Ra4 {[%clk 0:02:19]} 14. f3 {[%clk 0:02:43]}  f5 {[%clk 0:02:16]} 15. Bb5 {[%clk 0:02:42]}  Ra8 {[%clk 0:02:05]} 16. Nxc5 {[%clk 0:02:38]}  bxc5 {[%clk 0:02:05]} 17. Be7 {[%clk 0:02:38]}  Rf7 {[%clk 0:01:54]} 18. Bd6 {[%clk 0:02:38]}  Ng6 {[%clk 0:01:46]} 19. Bxc5 {[%clk 0:02:31]}  fxe4 {[%clk 0:01:46]} 20. fxe4 {[%clk 0:02:32]}  b6 {[%clk 0:01:36]} 21. Be3 {[%clk 0:02:25]}  Bb7 {[%clk 0:01:36]} 22. Rf1 {[%clk 0:02:06]}  Bxe4 {[%clk 0:00:58]} 23. Rxf7 {[%clk 0:02:06]}  Kxf7 {[%clk 0:00:59]} 24. Bxd7 {[%clk 0:02:06]}  Bxg2 {[%clk 0:00:59]} 25. a4 {[%clk 0:01:45]}  Ne5 {[%clk 0:00:53]} 26. Bb5 {[%clk 0:01:44]}  Bd5 {[%clk 0:00:18]} 27. Bxb6 {[%clk 0:01:29]}  Nf3+ {[%clk 0:00:15]} 28. Ke2 {[%clk 0:01:25]}  Nxh2 {[%clk 0:00:15]} 29. a5 {[%clk 0:01:25]}  Ng4 {[%clk 0:00:14]} 30. c4 {[%clk 0:01:24]}  Be4 {[%clk 0:00:12]} 31. a6 {[%clk 0:01:18]}  Nf6 {[%clk 0:00:12]} 32. a7 {[%clk 0:01:16]}  h5 {[%clk 0:00:11]} 33. Ke3 {[%clk 0:01:11]}  h4 {[%clk 0:00:10]} 34. Rf1 {[%clk 0:01:11]}  Bb7 {[%clk 0:00:08]} 35. Kf4 {[%clk 0:01:04]}  h3 {[%clk 0:00:08]} 36. Kg3 {[%clk 0:01:04]}  Rh8 {[%clk 0:00:09]} 37. Kh2 {[%clk 0:00:55]}  Ke7 {[%clk 0:00:09]} 38. Bc5+ {[%clk 0:00:55]}  Kf7 {[%clk 0:00:06]} 39. Ba4 {[%clk 0:00:46]}  Kg6 {[%clk 0:00:05]} 40. Bc2+ {[%clk 0:00:46]}  Kg5 {[%clk 0:00:02]} 41. Be3+ {[%clk 0:00:44]}  Kh4 {[%clk 0:00:02]} 42. Rf4+ {[%clk 0:00:43]}  Ng4+ {[%clk 0:00:02]} 43. Rxg4+ {[%clk 0:00:39]}  Kxg4 {[%clk 0:00:03]} 44. b4 {[%clk 0:00:32]}  e5 {[%clk 0:00:02]} 45. b5 {[%clk 0:00:32]}  Rc8 {[%clk 0:00:03]} 46. c5 {[%clk 0:00:32]}  e4 {[%clk 0:00:03]} 47. c6 {[%clk 0:00:32]}  Ba8 {[%clk 0:00:03]} 48. Bd4 {[%clk 0:00:20]}  Kf3 {[%clk 0:00:03]} 49. Bxg7 {[%clk 0:00:19]}  e3 {[%clk 0:00:03]} 50. Bc3 {[%clk 0:00:18]}  e2 {[%clk 0:00:04]} 51. Be1 {[%clk 0:00:18]}  Ke3 {[%clk 0:00:04]} 52. Bf5 {[%clk 0:00:18]}  Rf8 {[%clk 0:00:02]} 53. Bxh3 {[%clk 0:00:16]}  Rf7 {[%clk 0:00:03]} 54. Bg3 {[%clk 0:00:11]}  Rxa7 {[%clk 0:00:02]} 55. Kg2 {[%clk 0:00:11]}  Ra2 {[%clk 0:00:02]} 56. Bf2+ {[%clk 0:00:11]}  Kd3 {[%clk 0:00:02]} 57. Bf5+ {[%clk 0:00:10]}  Kc4 {[%clk 0:00:03]} 58. Kf3 {[%clk 0:00:10]}  Kxb5 {[%clk 0:00:02]} 59. Bd3+ {[%clk 0:00:10]}  Kxc6 {[%clk 0:00:02]} 60. Be4+ {[%clk 0:00:10]}  Kd7 {[%clk 0:00:02]} 61. Bxa8 {[%clk 0:00:11]}  Ra3+ {[%clk 0:00:02]} 62. Kxe2 {[%clk 0:00:11]}  Rxa8 {[%clk 0:00:03]} 63. Be3 {[%clk 0:00:12]}  Ke6 {[%clk 0:00:04]} 64. Kf3 {[%clk 0:00:12]}  Kd5 {[%clk 0:00:05]} 65. Bf2 {[%clk 0:00:13]}  Ra4 {[%clk 0:00:05]} 66. Kg2 {[%clk 0:00:14]}  Ke4 {[%clk 0:00:06]} 67. Bg1 {[%clk 0:00:15]}  Ra3 {[%clk 0:00:06]} 68. Kh1 {[%clk 0:00:16]}  Kf3 {[%clk 0:00:07]} 69. Bh2 {[%clk 0:00:16]}  Kf2 {[%clk 0:00:07]} 70. Bg1+ {[%clk 0:00:16]}  Kf1 {[%clk 0:00:07]} 71. Bh2 {[%clk 0:00:16]}  Ra5 {[%clk 0:00:08]} 72. Bg1 {[%clk 0:00:15]}  Rh5+ {[%clk 0:00:08]} 73. Bh2 {[%clk 0:00:16]}  Rg5 {[%clk 0:00:09]} 74. Bf4 {[%clk 0:00:15]}  Rg6 {[%clk 0:00:10]} 75. Be5 {[%clk 0:00:15]}  Kf2 {[%clk 0:00:11]} 76. Bh2 {[%clk 0:00:12]}  Rg8 {[%clk 0:00:10]} 77. Be5 {[%clk 0:00:12]}  Rg1+ {[%clk 0:00:10]} 78. Kh2 {[%clk 0:00:11]}  Rg5 {[%clk 0:00:11]} 79. Bd4+ {[%clk 0:00:11]}  Kf3 {[%clk 0:00:12]} 80. Bf6 {[%clk 0:00:09]}  Rh5+ {[%clk 0:00:10]} 81. Kg1 {[%clk 0:00:10]}  Rd5 {[%clk 0:00:10]} 82. Kh1 {[%clk 0:00:00]}  Kg3 {[%clk 0:00:10]} 0-1


[Site "https://www.chess.com"]

[Event "Titled Tuesday Blitz August 08 Early 2023"]
[White "ATM622"]
[Black "Tologon tegin, Semetei"]
[BlackFideId "13800574"]
[WhiteElo "2514"]
[BlackElo "2623"]
[Result "1-0"]
[Round "10"]
[TimeControl "180+1"]
[Date "2023.08.08"]
[WhiteClock "0:01:28"]
[BlackClock "0:01:21"]
[Board "70"]

1. d4 {[%clk 0:03:00]}  d5 {[%clk 0:02:57]} 2. c4 {[%clk 0:02:58]}  dxc4 {[%clk 0:02:57]} 3. e3 {[%clk 0:02:58]}  Nf6 {[%clk 0:02:58]} 4. Bxc4 {[%clk 0:02:58]}  e6 {[%clk 0:02:58]} 5. Nf3 {[%clk 0:02:58]}  a6 {[%clk 0:02:59]} 6. a4 {[%clk 0:02:57]}  c5 {[%clk 0:02:58]} 7. O-O {[%clk 0:02:56]}  Nc6 {[%clk 0:02:58]} 8. dxc5 {[%clk 0:02:51]}  Qxd1 {[%clk 0:02:57]} 9. Rxd1 {[%clk 0:02:50]}  Bxc5 {[%clk 0:02:58]} 10. Nc3 {[%clk 0:02:45]}  b6 {[%clk 0:02:57]} 11. Nd4 {[%clk 0:02:44]}  Bb7 {[%clk 0:02:55]} 12. Nb3 {[%clk 0:02:38]}  Be7 {[%clk 0:02:48]} 13. f3 {[%clk 0:02:24]}  O-O {[%clk 0:02:36]} 14. e4 {[%clk 0:02:22]}  Rfc8 {[%clk 0:02:20]} 15. Bf1 {[%clk 0:02:13]}  Nb4 {[%clk 0:02:11]} 16. Bg5 {[%clk 0:02:10]}  h6 {[%clk 0:02:10]} 17. Bh4 {[%clk 0:02:10]}  Nc2 {[%clk 0:02:03]} 18. Rac1 {[%clk 0:02:07]}  Ne3 {[%clk 0:02:03]} 19. Re1 {[%clk 0:02:02]}  Nxf1 {[%clk 0:02:00]} 20. Kxf1 {[%clk 0:02:03]}  Bb4 {[%clk 0:01:57]} 21. Bf2 {[%clk 0:01:57]}  Nd7 {[%clk 0:01:56]} 22. Red1 {[%clk 0:01:55]}  Bc6 {[%clk 0:01:54]} 23. Nd4 {[%clk 0:01:37]}  Bxc3 {[%clk 0:01:42]} 24. Nxc6 {[%clk 0:01:34]}  Rxc6 {[%clk 0:01:35]} 25. Rxd7 {[%clk 0:01:32]}  Rac8 {[%clk 0:01:29]} 26. bxc3 {[%clk 0:01:29]}  Rxc3 {[%clk 0:01:30]} 27. Rxc3 {[%clk 0:01:29]}  Rxc3 {[%clk 0:01:31]} 28. Bxb6 {[%clk 0:01:29]}  Ra3 {[%clk 0:01:21]} 29. a5 {[%clk 0:01:28]} 1-0


[Site "https://www.chess.com"]

[Event "Titled Tuesday Blitz August 08 Early 2023"]
[White "Heinemann, Josefine"]
[Black "Perske, Thore"]
[WhiteFideId "12900460"]
[BlackFideId "12902195"]
[WhiteElo "2592"]
[BlackElo "2514"]
[Result "0-1"]
[Round "10"]
[TimeControl "180+1"]
[Date "2023.08.08"]
[WhiteClock "0:00:06"]
[BlackClock "0:00:11"]
[Board "71"]

1. e4 {[%clk 0:02:37]}  e6 {[%clk 0:02:59]} 2. d4 {[%clk 0:02:31]}  d5 {[%clk 0:02:58]} 3. Nd2 {[%clk 0:02:31]}  c5 {[%clk 0:02:57]} 4. exd5 {[%clk 0:02:29]}  Qxd5 {[%clk 0:02:57]} 5. Ngf3 {[%clk 0:02:30]}  cxd4 {[%clk 0:02:56]} 6. Bc4 {[%clk 0:02:25]}  Qd6 {[%clk 0:02:55]} 7. O-O {[%clk 0:02:25]}  Nf6 {[%clk 0:02:54]} 8. Nb3 {[%clk 0:02:26]}  Nc6 {[%clk 0:02:54]} 9. Nbxd4 {[%clk 0:02:24]}  Nxd4 {[%clk 0:02:54]} 10. Nxd4 {[%clk 0:02:25]}  Be7 {[%clk 0:02:52]} 11. c3 {[%clk 0:02:23]}  O-O {[%clk 0:02:51]} 12. Qe2 {[%clk 0:02:21]}  a5 {[%clk 0:02:30]} 13. Rd1 {[%clk 0:02:17]}  Qb6 {[%clk 0:01:54]} 14. Be3 {[%clk 0:02:15]}  Bc5 {[%clk 0:01:52]} 15. Rab1 {[%clk 0:02:04]}  a4 {[%clk 0:01:48]} 16. b4 {[%clk 0:02:03]}  axb3 {[%clk 0:01:45]} 17. axb3 {[%clk 0:02:04]}  e5 {[%clk 0:01:27]} 18. b4 {[%clk 0:02:02]}  exd4 {[%clk 0:01:27]} 19. bxc5 {[%clk 0:02:02]}  Qxc5 {[%clk 0:01:28]} 20. Bxd4 {[%clk 0:02:02]}  Qg5 {[%clk 0:01:28]} 21. Qe3 {[%clk 0:01:47]}  Qg6 {[%clk 0:01:18]} 22. Bd3 {[%clk 0:01:44]}  Bf5 {[%clk 0:00:50]} 23. Bxf5 {[%clk 0:01:43]}  Qxf5 {[%clk 0:00:50]} 24. Rxb7 {[%clk 0:01:39]}  Rfe8 {[%clk 0:00:50]} 25. Qg3 {[%clk 0:01:19]}  Nh5 {[%clk 0:00:36]} 26. Qf3 {[%clk 0:00:56]}  Qxf3 {[%clk 0:00:34]} 27. gxf3 {[%clk 0:00:57]}  Nf4 {[%clk 0:00:33]} 28. Kf1 {[%clk 0:00:57]}  Rac8 {[%clk 0:00:21]} 29. Re1 {[%clk 0:00:53]}  Ne6 {[%clk 0:00:18]} 30. Re4 {[%clk 0:00:50]}  Rc6 {[%clk 0:00:16]} 31. Ke2 {[%clk 0:00:46]}  Rec8 {[%clk 0:00:15]} 32. f4 {[%clk 0:00:34]}  h6 {[%clk 0:00:13]} 33. f5 {[%clk 0:00:32]}  Nc5 {[%clk 0:00:13]} 34. Bxc5 {[%clk 0:00:32]}  Rxc5 {[%clk 0:00:14]} 35. Ree7 {[%clk 0:00:29]}  Rxf5 {[%clk 0:00:14]} 36. Rec7 {[%clk 0:00:29]}  Rxc7 {[%clk 0:00:14]} 37. Rxc7 {[%clk 0:00:30]}  Rh5 {[%clk 0:00:14]} 38. c4 {[%clk 0:00:30]}  Rxh2 {[%clk 0:00:14]} 39. c5 {[%clk 0:00:30]}  Rh1 {[%clk 0:00:15]} 40. Kd2 {[%clk 0:00:30]}  Rh4 {[%clk 0:00:14]} 41. Rc8+ {[%clk 0:00:27]}  Kh7 {[%clk 0:00:14]} 42. Kd3 {[%clk 0:00:27]}  Rh1 {[%clk 0:00:14]} 43. Kd2 {[%clk 0:00:18]}  Rf1 {[%clk 0:00:14]} 44. c6 {[%clk 0:00:16]}  Rxf2+ {[%clk 0:00:13]} 45. Kd3 {[%clk 0:00:16]}  Rf1 {[%clk 0:00:13]} 46. Kd2 {[%clk 0:00:16]}  Rf5 {[%clk 0:00:13]} 47. Kd3 {[%clk 0:00:13]}  Rc5 {[%clk 0:00:13]} 48. Kd4 {[%clk 0:00:13]}  Rc1 {[%clk 0:00:13]} 49. Kd3 {[%clk 0:00:14]}  h5 {[%clk 0:00:14]} 50. Ke3 {[%clk 0:00:14]}  g5 {[%clk 0:00:11]} 51. Kf3 {[%clk 0:00:12]}  Rc4 {[%clk 0:00:11]} 52. Kg3 {[%clk 0:00:12]}  h4+ {[%clk 0:00:11]} 53. Kh3 {[%clk 0:00:12]}  Kg7 {[%clk 0:00:11]} 54. c7 {[%clk 0:00:11]}  f5 {[%clk 0:00:10]} 55. Kg2 {[%clk 0:00:11]}  Rc3 {[%clk 0:00:10]} 56. Kf2 {[%clk 0:00:11]}  g4 {[%clk 0:00:10]} 57. Ke2 {[%clk 0:00:11]}  h3 {[%clk 0:00:11]} 58. Kd2 {[%clk 0:00:11]}  Rc6 {[%clk 0:00:11]} 59. Ke3 {[%clk 0:00:06]}  h2 {[%clk 0:00:11]} 0-1


[Site "https://www.chess.com"]

[Event "Titled Tuesday Blitz August 08 Early 2023"]
[White "Iljin, Timofey"]
[Black "vishwa_vijeta"]
[WhiteFideId "14110180"]
[WhiteElo "2494"]
[BlackElo "2575"]
[Result "1-0"]
[Round "10"]
[TimeControl "180+1"]
[Date "2023.08.08"]
[WhiteClock "0:00:30"]
[BlackClock "0:00:00"]
[Board "75"]

1. d4 {[%clk 0:02:53]}  Nf6 {[%clk 0:02:59]} 2. c4 {[%clk 0:02:53]}  g6 {[%clk 0:02:59]} 3. Nc3 {[%clk 0:02:53]}  d5 {[%clk 0:02:59]} 4. cxd5 {[%clk 0:02:54]}  Nxd5 {[%clk 0:02:58]} 5. e4 {[%clk 0:02:55]}  Nxc3 {[%clk 0:02:58]} 6. bxc3 {[%clk 0:02:56]}  Bg7 {[%clk 0:02:59]} 7. Nf3 {[%clk 0:02:57]}  c5 {[%clk 0:02:59]} 8. Be2 {[%clk 0:02:57]}  O-O {[%clk 0:02:53]} 9. O-O {[%clk 0:02:57]}  Nc6 {[%clk 0:02:50]} 10. Be3 {[%clk 0:02:57]}  Qa5 {[%clk 0:02:48]} 11. Rc1 {[%clk 0:02:46]}  Rd8 {[%clk 0:02:44]} 12. d5 {[%clk 0:02:46]}  Ne5 {[%clk 0:02:22]} 13. Nxe5 {[%clk 0:02:38]}  Bxe5 {[%clk 0:02:21]} 14. c4 {[%clk 0:02:39]}  Bg7 {[%clk 0:02:07]} 15. f4 {[%clk 0:02:25]}  b6 {[%clk 0:01:56]} 16. e5 {[%clk 0:02:24]}  f6 {[%clk 0:01:44]} 17. e6 {[%clk 0:02:09]}  Bxe6 {[%clk 0:01:44]} 18. Bd2 {[%clk 0:02:09]}  Qxa2 {[%clk 0:01:41]} 19. Rc2 {[%clk 0:02:09]}  Qa4 {[%clk 0:01:06]} 20. dxe6 {[%clk 0:02:08]}  Rd6 {[%clk 0:01:01]} 21. f5 {[%clk 0:01:48]}  Rad8 {[%clk 0:00:57]} 22. Qc1 {[%clk 0:01:48]}  gxf5 {[%clk 0:00:45]} 23. Bf3 {[%clk 0:01:48]}  Rxe6 {[%clk 0:00:42]} 24. Bd5 {[%clk 0:01:47]}  Rxd5 {[%clk 0:00:42]} 25. cxd5 {[%clk 0:01:48]}  Qd4+ {[%clk 0:00:41]} 26. Kh1 {[%clk 0:01:49]}  Qxd5 {[%clk 0:00:42]} 27. Bf4 {[%clk 0:01:45]}  Re4 {[%clk 0:00:36]} 28. Rd2 {[%clk 0:01:29]}  Rd4 {[%clk 0:00:31]} 29. Be3 {[%clk 0:01:06]}  Rxd2 {[%clk 0:00:29]} 30. Bxd2 {[%clk 0:01:07]}  c4 {[%clk 0:00:26]} 31. Bb4 {[%clk 0:00:56]}  e6 {[%clk 0:00:23]} 32. Rd1 {[%clk 0:00:55]}  Qe4 {[%clk 0:00:21]} 33. Rd8+ {[%clk 0:00:47]}  Kf7 {[%clk 0:00:20]} 34. Rd7+ {[%clk 0:00:47]}  Kg6 {[%clk 0:00:20]} 35. Rxa7 {[%clk 0:00:42]}  f4 {[%clk 0:00:19]} 36. Ra3 {[%clk 0:00:37]}  f5 {[%clk 0:00:00]} 37. Bc3 {[%clk 0:00:30]} 1-0


[Site "https://www.chess.com"]

[Event "Titled Tuesday Blitz August 08 Early 2023"]
[White "Rodchenkov, Sergey D."]
[Black "Toropov, Pavel"]
[WhiteFideId "4168712"]
[BlackFideId "24129178"]
[WhiteElo "2491"]
[BlackElo "2574"]
[Result "1-0"]
[Round "10"]
[TimeControl "180+1"]
[Date "2023.08.08"]
[WhiteClock "0:00:37"]
[BlackClock "0:00:00"]
[Board "76"]

1. e4 {[%clk 0:03:00]}  e6 {[%clk 0:02:59]} 2. d4 {[%clk 0:03:00]}  d5 {[%clk 0:03:00]} 3. Nc3 {[%clk 0:03:01]}  dxe4 {[%clk 0:03:00]} 4. Nxe4 {[%clk 0:03:02]}  Nd7 {[%clk 0:03:01]} 5. Nf3 {[%clk 0:03:02]}  Ngf6 {[%clk 0:03:02]} 6. Bd3 {[%clk 0:03:02]}  Nxe4 {[%clk 0:03:01]} 7. Bxe4 {[%clk 0:03:03]}  Nf6 {[%clk 0:03:01]} 8. Bd3 {[%clk 0:03:04]}  b6 {[%clk 0:03:01]} 9. a4 {[%clk 0:03:00]}  Bb7 {[%clk 0:02:56]} 10. a5 {[%clk 0:02:59]}  a6 {[%clk 0:02:47]} 11. axb6 {[%clk 0:02:58]}  cxb6 {[%clk 0:02:48]} 12. Qe2 {[%clk 0:02:58]}  Be7 {[%clk 0:02:35]} 13. O-O {[%clk 0:02:45]}  O-O {[%clk 0:02:32]} 14. c3 {[%clk 0:02:28]}  b5 {[%clk 0:02:31]} 15. Ne5 {[%clk 0:02:22]}  Qd5 {[%clk 0:02:16]} 16. f4 {[%clk 0:02:21]}  Rfc8 {[%clk 0:02:07]} 17. Be3 {[%clk 0:02:10]}  g6 {[%clk 0:01:42]} 18. Rae1 {[%clk 0:02:01]}  Nd7 {[%clk 0:01:14]} 19. Rf3 {[%clk 0:01:47]}  Nb6 {[%clk 0:00:55]} 20. Rh3 {[%clk 0:01:34]}  f5 {[%clk 0:00:23]} 21. Bc1 {[%clk 0:01:04]}  Nc4 {[%clk 0:00:17]} 22. Nf3 {[%clk 0:00:59]}  Nd6 {[%clk 0:00:10]} 23. Qxe6+ {[%clk 0:00:52]}  Qxe6 {[%clk 0:00:09]} 24. Rxe6 {[%clk 0:00:53]}  Bf8 {[%clk 0:00:04]} 25. Ng5 {[%clk 0:00:44]}  Bd5 {[%clk 0:00:04]} 26. Re5 {[%clk 0:00:42]}  Bc4 {[%clk 0:00:03]} 27. Bc2 {[%clk 0:00:41]}  h6 {[%clk 0:00:02]} 28. Ne6 {[%clk 0:00:40]}  Bxe6 {[%clk 0:00:01]} 29. Rxe6 {[%clk 0:00:41]}  Kf7 {[%clk 0:00:02]} 30. Rhe3 {[%clk 0:00:37]}  Nc4 {[%clk 0:00:00]} 31. Re1 {[%clk 0:00:37]} 1-0


[Site "https://www.chess.com"]

[Event "Titled Tuesday Blitz August 08 Early 2023"]
[White "Kirillov, Dmitry"]
[Black "Shvedova, Alexandra"]
[WhiteFideId "34180572"]
[BlackFideId "54154782"]
[WhiteElo "2466"]
[BlackElo "2565"]
[Result "1-0"]
[Round "10"]
[TimeControl "180+1"]
[Date "2023.08.08"]
[WhiteClock "0:00:57"]
[BlackClock "0:00:13"]
[Board "78"]

1. e4 {[%clk 0:02:57]}  e5 {[%clk 0:02:59]} 2. Nf3 {[%clk 0:02:56]}  Nc6 {[%clk 0:03:00]} 3. d4 {[%clk 0:02:57]}  exd4 {[%clk 0:02:58]} 4. c3 {[%clk 0:02:57]}  Nf6 {[%clk 0:02:48]} 5. e5 {[%clk 0:02:56]}  Ne4 {[%clk 0:02:36]} 6. cxd4 {[%clk 0:02:33]}  d5 {[%clk 0:02:35]} 7. Nc3 {[%clk 0:02:32]}  Be7 {[%clk 0:02:30]} 8. Bd3 {[%clk 0:02:29]}  Bf5 {[%clk 0:02:29]} 9. O-O {[%clk 0:02:26]}  O-O {[%clk 0:02:29]} 10. Re1 {[%clk 0:02:25]}  Nxc3 {[%clk 0:02:22]} 11. bxc3 {[%clk 0:02:26]}  Qd7 {[%clk 0:02:18]} 12. Rb1 {[%clk 0:02:24]}  b6 {[%clk 0:02:14]} 13. Bf4 {[%clk 0:02:23]}  h6 {[%clk 0:02:08]} 14. h3 {[%clk 0:02:22]}  Na5 {[%clk 0:02:03]} 15. Qc2 {[%clk 0:02:15]}  Bxd3 {[%clk 0:02:02]} 16. Qxd3 {[%clk 0:02:16]}  Nc4 {[%clk 0:02:02]} 17. Nd2 {[%clk 0:02:16]}  Nxd2 {[%clk 0:01:56]} 18. Qxd2 {[%clk 0:02:15]}  Qf5 {[%clk 0:01:54]} 19. g4 {[%clk 0:02:12]}  Qg6 {[%clk 0:01:52]} 20. Bg3 {[%clk 0:02:11]}  Rad8 {[%clk 0:01:40]} 21. f4 {[%clk 0:02:07]}  f5 {[%clk 0:01:33]} 22. exf6 {[%clk 0:02:07]}  Bxf6 {[%clk 0:01:34]} 23. f5 {[%clk 0:02:07]}  Qf7 {[%clk 0:01:33]} 24. Re6 {[%clk 0:02:04]}  c5 {[%clk 0:01:25]} 25. Be5 {[%clk 0:01:54]}  Bg5 {[%clk 0:01:05]} 26. Qe2 {[%clk 0:01:48]}  Qd7 {[%clk 0:00:59]} 27. Rg6 {[%clk 0:01:45]}  Rf7 {[%clk 0:00:58]} 28. Rf1 {[%clk 0:01:30]}  Re8 {[%clk 0:00:55]} 29. Qg2 {[%clk 0:01:16]}  cxd4 {[%clk 0:00:54]} 30. cxd4 {[%clk 0:01:16]}  Kh7 {[%clk 0:00:47]} 31. Rd6 {[%clk 0:01:15]}  Qa4 {[%clk 0:00:43]} 32. Qxd5 {[%clk 0:01:14]}  Rfe7 {[%clk 0:00:36]} 33. f6 {[%clk 0:00:58]}  gxf6 {[%clk 0:00:36]} 34. Qe4+ {[%clk 0:00:57]}  Kg7 {[%clk 0:00:33]} 35. Rdxf6 {[%clk 0:00:57]}  Bxf6 {[%clk 0:00:20]} 36. Bxf6+ {[%clk 0:00:58]}  Kg8 {[%clk 0:00:18]} 37. Bxe7 {[%clk 0:00:58]}  Rxe7 {[%clk 0:00:17]} 38. Qxe7 {[%clk 0:00:57]}  Qxd4+ {[%clk 0:00:17]} 39. Rf2 {[%clk 0:00:57]}  Qd1+ {[%clk 0:00:13]} 40. Kh2 {[%clk 0:00:57]} 1-0


[Site "https://www.chess.com"]

[Event "Titled Tuesday Blitz August 08 Early 2023"]
[White "Wong, Zhenyong Jayden"]
[Black "LangesNasenhaar"]
[WhiteFideId "5821975"]
[WhiteElo "2464"]
[BlackElo "2564"]
[Result "1-0"]
[Round "10"]
[TimeControl "180+1"]
[Date "2023.08.08"]
[WhiteClock "0:00:08"]
[BlackClock "0:00:10"]
[Board "79"]

1. g3 {[%clk 0:02:21]}  d5 {[%clk 0:02:57]} 2. Nf3 {[%clk 0:02:21]}  c6 {[%clk 0:02:58]} 3. Bg2 {[%clk 0:02:22]}  Nf6 {[%clk 0:02:58]} 4. O-O {[%clk 0:02:23]}  Bf5 {[%clk 0:02:58]} 5. b3 {[%clk 0:02:23]}  e6 {[%clk 0:02:58]} 6. Bb2 {[%clk 0:02:23]}  h6 {[%clk 0:02:59]} 7. d3 {[%clk 0:02:24]}  Be7 {[%clk 0:02:58]} 8. Nbd2 {[%clk 0:02:25]}  Bh7 {[%clk 0:02:59]} 9. c4 {[%clk 0:02:25]}  O-O {[%clk 0:02:59]} 10. Rc1 {[%clk 0:02:24]}  a5 {[%clk 0:02:59]} 11. a3 {[%clk 0:02:24]}  Na6 {[%clk 0:03:00]} 12. Rc2 {[%clk 0:02:21]}  b5 {[%clk 0:02:59]} 13. Qa1 {[%clk 0:02:20]}  bxc4 {[%clk 0:02:53]} 14. bxc4 {[%clk 0:02:21]}  Nc5 {[%clk 0:02:43]} 15. Ne5 {[%clk 0:02:18]}  Qd6 {[%clk 0:02:37]} 16. Rfc1 {[%clk 0:02:12]}  Na4 {[%clk 0:02:34]} 17. cxd5 {[%clk 0:01:57]}  Nxb2 {[%clk 0:02:31]} 18. Qxb2 {[%clk 0:01:46]}  cxd5 {[%clk 0:02:29]} 19. a4 {[%clk 0:01:40]}  Rfb8 {[%clk 0:02:18]} 20. Qa1 {[%clk 0:01:29]}  Bf8 {[%clk 0:02:09]} 21. Ndf3 {[%clk 0:01:20]}  Rb7 {[%clk 0:01:36]} 22. Rc8 {[%clk 0:01:13]}  Rxc8 {[%clk 0:01:33]} 23. Rxc8 {[%clk 0:01:14]}  Rc7 {[%clk 0:01:31]} 24. Rxc7 {[%clk 0:01:08]}  Qxc7 {[%clk 0:01:32]} 25. Qb2 {[%clk 0:01:04]}  Bd6 {[%clk 0:01:29]} 26. Bf1 {[%clk 0:01:01]}  Nd7 {[%clk 0:01:23]} 27. Nxd7 {[%clk 0:00:59]}  Qxd7 {[%clk 0:01:24]} 28. Qb6 {[%clk 0:00:55]}  Bc7 {[%clk 0:01:14]} 29. Qb7 {[%clk 0:00:51]}  Qd6 {[%clk 0:01:02]} 30. Nd4 {[%clk 0:00:42]}  Bb6 {[%clk 0:00:42]} 31. Nb5 {[%clk 0:00:40]}  Qd8 {[%clk 0:00:40]} 32. h4 {[%clk 0:00:26]}  Bf5 {[%clk 0:00:38]} 33. Bg2 {[%clk 0:00:24]}  h5 {[%clk 0:00:33]} 34. Bf3 {[%clk 0:00:22]}  Bg6 {[%clk 0:00:32]} 35. Kg2 {[%clk 0:00:21]}  Kh7 {[%clk 0:00:31]} 36. Qc6 {[%clk 0:00:18]}  Kh6 {[%clk 0:00:27]} 37. Qb7 {[%clk 0:00:18]}  f6 {[%clk 0:00:25]} 38. Qc6 {[%clk 0:00:17]}  Bf7 {[%clk 0:00:23]} 39. Nd6 {[%clk 0:00:17]}  Bg8 {[%clk 0:00:20]} 40. Nb5 {[%clk 0:00:11]}  Bf7 {[%clk 0:00:19]} 41. Nd6 {[%clk 0:00:11]}  Bg6 {[%clk 0:00:19]} 42. Nb5 {[%clk 0:00:10]}  Kh7 {[%clk 0:00:19]} 43. Qxe6 {[%clk 0:00:10]}  Qf8 {[%clk 0:00:14]} 44. Qxd5 {[%clk 0:00:09]}  f5 {[%clk 0:00:11]} 45. Nd6 {[%clk 0:00:08]}  f4 {[%clk 0:00:09]} 46. Bxh5 {[%clk 0:00:07]}  Bxh5 {[%clk 0:00:07]} 47. Qxh5+ {[%clk 0:00:08]}  Kg8 {[%clk 0:00:08]} 48. Qd5+ {[%clk 0:00:08]}  Kh7 {[%clk 0:00:08]} 49. Qf5+ {[%clk 0:00:08]}  Qxf5 {[%clk 0:00:07]} 50. Nxf5 {[%clk 0:00:09]}  fxg3 {[%clk 0:00:08]} 51. fxg3 {[%clk 0:00:09]}  Kg6 {[%clk 0:00:07]} 52. g4 {[%clk 0:00:10]}  Kf6 {[%clk 0:00:07]} 53. Kf3 {[%clk 0:00:09]}  Ke5 {[%clk 0:00:08]} 54. Nxg7 {[%clk 0:00:10]}  Bc7 {[%clk 0:00:09]} 55. e3 {[%clk 0:00:09]}  Kf6 {[%clk 0:00:09]} 56. Nf5 {[%clk 0:00:09]}  Ke5 {[%clk 0:00:10]} 57. h5 {[%clk 0:00:09]}  Kf6 {[%clk 0:00:10]} 58. h6 {[%clk 0:00:09]}  Kg5 {[%clk 0:00:11]} 59. d4 {[%clk 0:00:08]}  Be5 {[%clk 0:00:10]} 60. dxe5 {[%clk 0:00:08]} 1-0


[Site "https://www.chess.com"]

[Event "Titled Tuesday Blitz August 08 Early 2023"]
[White "Camilla_Lee"]
[Black "Hrbek, Stepan"]
[BlackFideId "393479"]
[WhiteElo "2559"]
[BlackElo "2463"]
[Result "0-1"]
[Round "10"]
[TimeControl "180+1"]
[Date "2023.08.08"]
[WhiteClock "0:01:07"]
[BlackClock "0:02:07"]
[Board "81"]

1. e4 {[%clk 0:03:00]}  c5 {[%clk 0:02:59]} 2. Nf3 {[%clk 0:02:58]}  Nc6 {[%clk 0:02:59]} 3. d4 {[%clk 0:02:58]}  cxd4 {[%clk 0:02:59]} 4. Nxd4 {[%clk 0:02:59]}  Nf6 {[%clk 0:03:00]} 5. Nc3 {[%clk 0:02:59]}  e5 {[%clk 0:03:00]} 6. Ndb5 {[%clk 0:02:57]}  d6 {[%clk 0:03:01]} 7. Bg5 {[%clk 0:02:55]}  a6 {[%clk 0:03:01]} 8. Na3 {[%clk 0:02:53]}  b5 {[%clk 0:02:59]} 9. Nd5 {[%clk 0:02:54]}  Be7 {[%clk 0:02:59]} 10. Bxf6 {[%clk 0:02:54]}  Bxf6 {[%clk 0:02:59]} 11. c3 {[%clk 0:02:55]}  Rb8 {[%clk 0:02:59]} 12. Nc2 {[%clk 0:02:55]}  Bg5 {[%clk 0:02:59]} 13. Bd3 {[%clk 0:02:51]}  O-O {[%clk 0:02:56]} 14. h4 {[%clk 0:02:50]}  Bh6 {[%clk 0:02:53]} 15. g4 {[%clk 0:02:50]}  Bf4 {[%clk 0:02:52]} 16. Qf3 {[%clk 0:02:49]}  Be6 {[%clk 0:02:42]} 17. Nxf4 {[%clk 0:02:49]}  exf4 {[%clk 0:02:43]} 18. Qxf4 {[%clk 0:02:49]}  Ne5 {[%clk 0:02:44]} 19. Be2 {[%clk 0:02:47]}  Bc4 {[%clk 0:02:43]} 20. Bxc4 {[%clk 0:02:39]}  bxc4 {[%clk 0:02:44]} 21. O-O-O {[%clk 0:02:00]}  Nd3+ {[%clk 0:02:40]} 22. Rxd3 {[%clk 0:02:00]}  cxd3 {[%clk 0:02:41]} 23. Nd4 {[%clk 0:02:01]}  Qa5 {[%clk 0:02:25]} 24. a3 {[%clk 0:01:52]}  Rxb2 {[%clk 0:02:12]} 25. Kxb2 {[%clk 0:01:40]}  Rb8+ {[%clk 0:02:11]} 26. Ka2 {[%clk 0:01:23]}  Qxc3 {[%clk 0:02:10]} 27. Rb1 {[%clk 0:01:20]}  Rxb1 {[%clk 0:02:07]} 28. Kxb1 {[%clk 0:01:07]}  d2 {[%clk 0:02:07]} 0-1


[Site "https://www.chess.com"]